Cogmind - Beta 14 @@@ ROGUE MODE // 2024.08.12 @ 08:46:53 Player: f3-rnm Result: Destroyed by D-53 Grenadier with Mini Grenade Launcher Performance ------------- Evolutions (0) 0 Regions Visited (2) 400 Robots Destroyed (16) 80 Value Destroyed (314) 314 Prototype IDs (0) 0 Alien Tech Used (0) 0 Bonus (0) 0 TOTAL SCORE: 794 Bonus ------- None Cogmind --------- Core Integrity 0/250 Matter 293/300 Energy 98/100 System Corruption 0% Temperature Cool (0) Movement Treading (160) Location -10/Mines Parts ------- > --- POWER (1) -------- (None) > --- PROPULSION (2) --- Light Treads > --- UTILITY (2) ------ Medium Storage Unit > --- WEAPON (2) ------- Light Assault Rifle Heavy Assault Rifle > --- INVENTORY (10) --- Wheel Improved Heat Sink High-capacity Storage Unit Huge Storage Unit Targeting Computer Tractor Beam Small Laser Grenade Launcher Peak State ------------ > --- POWER ------------ Improved Ion Engine > --- PROPULSION ------- Light Treads Light Treads > --- UTILITY ---------- Medium Storage Unit Core Shielding > --- WEAPON ----------- Medium Laser Heavy Assault Rifle > --- INVENTORY -------- Wheel Improved Heat Sink High-capacity Storage Unit Huge Storage Unit Targeting Computer Tractor Beam Small Laser Light Assault Rifle Grenade Launcher [Rating: 10] Favorites ----------- Power Ion Engine Engine Ion Engine Propulsion Light Treads Treads Light Treads Wheel Wheel Utility Core Shielding Storage Medium Storage Unit Protection Core Shielding Weapon Small Laser Energy Gun Small Laser Ballistic Gun Light Assault Rifle Build | -11 -10 -10 ------- Run | Yrd Mat Min Slots Evolved . | . . . Power . | . . . Propulsion . | . . . Utility . | . . . Weapon . | . . . Parts Attached 18 | 6 4 8 Power 3 | 1 1 1 Engine 3 | 1 1 1 Core . | . . . Reactor . | . . . Propulsion 5 | 2 . 3 Treads 4 | 2 . 2 Leg . | . . . Wheel 1 | . . 1 Hover . | . . . Flight . | . . . Utility 3 | 1 2 . Device . | . . . Storage 2 | 1 1 . Processor . | . . . Hackware . | . . . Protection 1 | . 1 . Artifact . | . . . Weapon 7 | 2 1 4 Energy Gun 4 | 2 . 2 Energy Cannon . | . . . Ballistic Gun 3 | . 1 2 Ballistic Cannon . | . . . Launcher . | . . . Special Weapon . | . . . Impact Weapon . | . . . Slashing Weapon . | . . . Piercing Weapon . | . . . Special Melee Weapon . | . . . Unidentified Prototypes . | . . . Parts Lost 11 | . 1 10 Power 3 | . 1 2 Propulsion 4 | . . 4 Utility 1 | . . 1 Weapon 3 | . . 3 Highest Loss Streak 5 | . 1 5 To Critical Strikes . | . . . Average Slot Usage (%) 93 | . 94 93 Engine 12 | . 13 11 Treads 27 | . 28 26 Storage 14 | . 14 14 Protection 11 | . 8 14 Energy Gun 16 | . 19 14 Ballistic Gun 9 | . 8 11 Peak Build Rating 10 | 6 8 10 Average Rating 6 | 4 6 7 On Entrance 4 | . 6 7 Naked Turns . | . . . Heaviest Build 23 | 13 18 23 Greatest Support 40 | 40 40 40 Greatest Overweight (x) 5 | . . 5 Average Overweight (x) . | . . . Largest Inventory Capacity 10 | 8 10 10 Average Capacity 9 | 7 8 10 Most Carried 10 | 3 8 10 Average Carried 6 | 1 5 7 Final Capacity 10 | 8 10 10 Final Carried 8 | 3 6 8 Class Distribution -------------------- 86% | Mutant 13% | Scavenger-Mutant Dominant Class ---------------- Mutant | -10/Materials Mutant | -10/Mines Resources | -11 -10 -10 ----------- Run | Yrd Mat Min Matter Collected 407 | 199 113 95 Remotely . | . . . Salvage Created 483 | . 293 190 Parts 31 | . 17 14 Haulers Intercepted 1 | . 1 . Recyclers Shooed 1 | . . 1 Parts Field Recycled . | . . . Retrieved Matter . | . . . Parts Self-Destructed . | . . . Prevented . | . . . Kills | -11 -10 -10 ------- Run | Yrd Mat Min Combat Hostiles Destroyed 12 | . 7 5 Guns 12 | . 7 5 Classes Destroyed 7 | . 4 3 Worker 1 | . . 1 Builder 1 | . 1 . Tunneler 1 | . . 1 Hauler 1 | . 1 . Swarmer 6 | . 3 3 Grunt 4 | . 4 . Sentry 2 | . . 2 Best Kill Streak 5 | . 5 3 Combat Bots Only 4 | . 4 3 Max Kills in Single Turn 2 | . 2 1 Gunslinging . | . . . Exploded . | . . . Melee . | . . . Uniques/NPCs Destroyed . | . . . Combat | -11 -10 -10 -------- Run | Yrd Mat Min Hostile Shots Fired 122 | . 52 70 Missed 28 | . 11 17 Damage Taken 1419 | . 414 1005 Core 280 | . 84 196 Absorbed by Shields . | . . . Redirected to Shielding 57 | . 15 42 Core Remaining (%) 100 | 100 . . Volleys Fired 73 | 1 37 35 Largest 2 | 2 2 2 Hottest 90 | 90 90 90 Shots Fired 133 | 2 74 57 Gun 133 | 2 74 57 Cannon . | . . . Launcher . | . . . Special . | . . . Kinetic 53 | . 30 23 Thermal 78 | 2 44 32 Explosive . | . . . Electromagnetic 2 | . . 2 Robot Hit Streak 31 | 2 8 31 Robot Miss Streak 5 | . 5 3 Penetration Max . | . . . Secondary Targets 2 | . 1 1 Max Gunslinging Chain 1 | . 1 1 Shots Hit Robots 94 | 2 46 46 Core Hits 29 | . 19 10 Critical Kills . | . . . Critical Parts Destroyed . | . . . Critical Strikes 3 | . 1 2 Burn 3 | . 1 2 Melee Attacks . | . . . Impact . | . . . Slashing . | . . . Piercing . | . . . Sneak Attacks . | . . . Combat Hostiles . | . . . Follow-up Attacks . | . . . Damage Inflicted 1036 | 23 478 535 Guns 1036 | 23 478 535 Cannons . | . . . Explosions . | . . . Melee . | . . . Ramming . | . . . Kinetic 327 | . 153 174 Thermal 686 | 23 325 338 Explosive . | . . . Electromagnetic 23 | . . 23 Impact . | . . . Slashing . | . . . Piercing . | . . . Highest Corruption . | . . . Average Corruption . | . . . Corruption Purged . | . . . Corruption Blocked . | . . . Overload Shots . | . . . Overflow Damage . | . . . Projectiles . | . . . Explosions . | . . . Melee . | . . . Knockbacks . | . . . Impact . | . . . Kinetic . | . . . Secondary . | . . . Self-Inflicted Damage . | . . . Shots . | . . . Rammed . | . . . Targets Rammed . | . . . Kicked . | . . . Crushed . | . . . Highest Temperature 150 | 30 150 88 Average Temperature 39 | 18 41 39 Received Heat Transfer 237 | . 120 117 Siege Activations . | . . . Robots Corrupted . | . . . Combat Hostiles . | . . . Parts Fried . | . . . Impact Corruptions . | . . . Robots Melted . | . . . Combat Hostiles . | . . . Parts Melted 3 | . 1 2 Heat Transferred 1973 | 62 835 1076 Parts Sabotaged . | . . . Parts Stolen . | . . . Parts Stripped . | . . . Power Chain Reactions . | . . . Alert | -11 -10 -10 ------- Run | Yrd Mat Min Peak Influence 192 | . 192 75 Initial 39 | . . 39 Average 61 | . 81 51 Maximum Alert Level . | . . . Low Security (%) 100 | 100 100 100 Level 1 . | . . . Level 2 . | . . . Level 3 . | . . . Level 4 . | . . . Level 5 . | . . . High Security . | . . . Max Security . | . . . Squads Dispatched 1 | . 1 . Investigation . | . . . Extermination . | . . . Reinforcement 1 | . 1 . Assault . | . . . Garrison . | . . . Intercept . | . . . Searches Triggered . | . . . Construction Impeded . | . . . Haulers Reinforced . | . . . Active Scanning Responses . | . . . Cargo Convoy Interrupts . | . . . Stealth | -11 -10 -10 --------- Run | Yrd Mat Min Distress Signals 3 | . 3 . Communications Jammed . | . . . Distress Signals . | . . . Times Spotted 24 | . 17 7 Peak Tracking Total 6 | . 6 3 Tactical Retreats 3 | . 2 1 Traps | -11 -10 -10 ------- Run | Yrd Mat Min Traps Triggered . | . . . Indirectly . | . . . Trap Hack Attempts . | . . . Triggered . | . . . Disarmed . | . . . Reprogrammed . | . . . Reused . | . . . Traps Extracted . | . . . Installed . | . . . Triggered . | . . . Machines | -11 -10 -10 ---------- Run | Yrd Mat Min Machines Disabled . | . . . Max in Single Turn . | . . . Machines Repaired . | . . . Machines Dismantled . | . . . Machines Sabotaged . | . . . Overloaded Fab Kills . | . . . Hacking | -11 -10 -10 --------- Run | Yrd Mat Min Machines Accessed 1 | . 1 . Terminals 1 | . 1 . Fabricators . | . . . Repair Stations . | . . . Recycling Units . | . . . Scanalyzers . | . . . Garrison Access . | . . . Total Hacks 2 | . 2 . Successful . | . . . Failed 2 | . 2 . Catastrophic . | . . . Database Lockouts . | . . . Manual 2 | . 2 . Terminals 2 | . 2 . Fabricators . | . . . Repair Stations . | . . . Recycling Units . | . . . Scanalyzers . | . . . Garrison Access . | . . . Terminal Hacks . | . . . Fabricator Hacks . | . . . Repair Station Hacks . | . . . Recycling Unit Hacks . | . . . Scanalyzer . | . . . Garrison Access Hacks . | . . . Unauthorized Hacks . | . . . Terminals . | . . . Fabricators . | . . . Repair Stations . | . . . Recycling Units . | . . . Scanalyzers . | . . . Garrison Access . | . . . Data Cores Recovered . | . . . Used . | . . . Hacking Detections 1 | . 1 . Full Trace Events . | . . . Feedback Events . | . . . Feedback Blocked . | . . . Robot Schematics Acquired . | . . . Robots Built . | . . . Authchips . | . . . Time . | . . . Total Robot Build Rating . | . . . Part Schematics Acquired . | . . . Parts Built . | . . . Authchips . | . . . Time . | . . . Total Part Build Rating . | . . . Parts Repaired . | . . . Time . | . . . Parts Recycled . | . . . Recycled Matter . | . . . Retrieved Matter . | . . . Retrieved Components . | . . . Parts Scanalyzed . | . . . Part Schematics Acquired . | . . . Parts Damaged . | . . . Bothacking | -11 -10 -10 ------------ Run | Yrd Mat Min Used RIF Installer . | . . . Robots Hacked . | . . . Non-combat . | . . . Combat . | . . . Robot Hacks Applied . | . . . Relay Couplers Released . | . . . Fabnet Peak Effective % . | . . . Robots Rewired . | . . . Allies Hacked . | . . . Hacks Repelled . | . . . Allies | -11 -10 -10 -------- Run | Yrd Mat Min Total Allies . | . . . Largest Group . | . . . Highest-Rated Group . | . . . Highest-Rated Ally . | . . . Total Orders . | . . . Ally Attacks . | . . . Total Damage . | . . . Kills . | . . . Allies Corrupted . | . . . Allies Melted . | . . . Intel | -11 -10 -10 ------- Run | Yrd Mat Min Robot Analysis Total . | . . . Derelict Logs Recovered 1 | . . 1 Drone Launches . | . . . Drone Recoveries . | . . . Exploration | -11 -10 -10 ------------- Run | Yrd Mat Min Turns Passed 1157 | 72 501 584 Spaces Moved 580 | 39 242 299 Core 5 | 4 . 1 Treads 572 | 35 242 295 Legs . | . . . Wheels 3 | . . 3 Hover . | . . . Flight . | . . . Fastest Speed 50 | 50 160 95 Average Speed 159 | 148 160 159 Slowest Speed 300 | 160 160 300 Overloaded Moves . | . . . Propulsion Burnouts . | . . . Robots Hopped . | . . . Cave-ins Triggered . | . . . Exploration Rate (%) 36 | 4 48 56 Regions Visited 2 Branch Regions 1 Pre-discovered Areas . | . . . Known Exits Taken . | . . . Unknown Exits Taken 2 | 1 1 . Scrap Searched . | . . . Spaces Dug . | . . . Terrain Destroyed . | . . . Melee . | . . . Projectile . | . . . AOE . | . . . Terrain Rammed . | . . . Walls Destroyed . | . . . Machines Disabled . | . . . Actions | -11 -10 -10 --------- Run | Yrd Mat Min Total 687 | 48 287 352 Wait 2 | . . 2 Move 578 | 38 241 299 Hop . | . . . Pick Up 14 | 3 4 7 Fast Attach 10 | 6 1 3 Attach 6 | . 1 5 Detach . | . . . Swap 2 | . 2 . Drop 2 | . 1 1 Fire 73 | 1 37 35 Melee . | . . . Ram . | . . . Kick . | . . . Crush . | . . . Escape Stasis . | . . . Rewire . | . . . Trap . | . . . Miscellaneous . | . . . Route ------- -11/Scrapyard -10/Materials -10/Mines History --------- Turn | Location | Event 11 | -11/Scrapyard | Discovered new exit (range 15) 73 | -11/Scrapyard | Entered Materials 309 | -10/Materials | Build established: Mutant 424 | -10/Materials | Discovered new exit (range 16) 574 | -10/Materials | Entered Mines 833 | -10/Mines | Learned Materials terminal intel 918 | -10/Mines | Lost 5 parts (3n2w) 1090 | -10/Mines | Assembled infested the area 1149 | -10/Mines | Core integrity fell below 50% 1157 | -10/Mines | Core integrity fell below 20% 1158 | -10/Mines | Destroyed by D-53 Grenadier with Mini Grenade Launcher Last Messages --------------- 00985_ Lgt. Ion Engine destroyed. 00987_ S-10 Pest suffers critical hit (Burn). 00987_ S-10 Pest destroyed. 00994_ Acquired 12 matter. 01005_ S-10 Pest destroyed. 01008_ Acquired 16 matter. 01011_ Acquired Lgt. Assault Rifle. 01061_ K-01 Serf destroyed. 01064_ Acquired 6 matter. 01077_ Acquired Wheel. 01090_ ALERT: Infestation in the mines, dispatching Demolisher response squad. 01102_ Acquired 10 matter. 01148_ Seismic Survey Station disabled. 01148_ Med. Laser destroyed. 01152_ Imp. Ion Engine destroyed. 01153_ The unstable cave ceiling collapses. 01154_ Lgt. Treads destroyed. 01158_ The unstable cave ceiling collapses. 01158_ Core Shielding destroyed. Map ----- +----------------------------------------------------+ | ?????## #??# #??????????????# ## #?? | | ????## ## #### ##?????????????# ?# ### | | ???## #### ## ###???????????# ?# | | ??## #??## ##??????????# ?##### | | ?## #???## #??????????#????### | | ?# #????# ### #??????????????## | | ?# #????##### ##?## ##??????????????# | | ?# ##????????####???# ##???????????????# | | ?## ##???????????????# #????????????????## | | ??## #???????????????## ##?????????????????## | | ???## #?????????????????##??????????????????## | | ????# #????????????????????????????????????##[ | | ????## ##???????????????????????????????????## | | ?????####??????????????????????????????????### | | ??????????????????????????????????????????## | | | ????????????????????????????????????####### ! | | ????????????????????????????????????# | | ???????????????????????#########????# # | | ???????????????????????# ###### ## #### ## | | ???????????????????????# ## #??#####? | | ??????????????????????## ######### #???????? | | ?????????????????????## ##??????# #???????? | | ????????????????????## ######## #???????? | | ????????????????????# # * #???????? | | ????????????????????# ## ########???????? | | ????????????????????# @ ## #??????????????? | | ????????????????????# ### #??????????????? | | ????????????????? d #?# #??????????????? | | ????????????????### ## ##?# #??????????????? | | ?????????????????????## ##??# #??????????????? | | ??????????????????????# #???# #??????????????? | | ??????????????????????# #???# #??????????????? | | ??????????????????????# d ???# #??????????????? | | ??????????????????????# ???# #??????????????? | | ??????????????????????% ??# #??????????????? | | ?????????????????????? #??# #??????????????? | | ????????????????????? ??# ??????????????? | | ????????????????????? ?? ??????????????? | | ????????????????????? ?? ??????????????? | | ????????????????????? ??? ??????????????? | | ??????????????????????? ????? ??????????????? | | ????????????????????????????????? #??????????????? | | ????????????????????????????????? ???????????????? | | ????????????????????????????????? ???????????????? | | ?????????????????????????????????????????????????? | | ?????????????????????????????????????????????????? | | ?????????????????????????????????????????????????? | | ?????????????????????????????????????????????????? | | ?????????????????????????????????????????????????? | | ?????????????????????????????????????????????????? | +----------------------------------------------------+ Best States ------------- Heat Dissipation 25 Energy Generation 12 Energy Capacity 265 Matter Stores 300 Matter Capacity 300 Sight Range 16 Terrain Scan Density 10 Core Shielding 20 Evasion (%) 40 Recoil Reduction 2 Item Schematics ----------------- None Robot Schematics ------------------ None Fabricated ------------ Nothing Alien Tech Used ----------------- None Achievements -------------- None Challenges ------------ None Game ------ Seed StorageSniperStatue Manual? 0 Play Time 00:06:36 Cumulative 226.7 hours Start 2024.08.12 @ 08:42:28 End 2024.08.12 @ 08:46:53 Sessions 1 Manual Loads 0 Difficulty Rogue Special Mode None Game No. 238 Rogue 202 Adventurer 36 Explorer 0 Win Type - Total 10 Types 3/0/7/0/0/0/0/0/0 Lore% 59 Gallery% 81 Achievement% 71 Wizard Run 0 Options --------- Layout 0 ASCII 0 Keyboard 0 Movement Mouse Keybinds 0 Fullscreen 1 Font 18/SmallcapsGlow Map View 76x50 Zoom Use 0% Tactical HUD 1 Map Filters NONE Filters NONE Steam 1 RUN: 577aa7a7-66d2-4eed-ba05-f4446f0c395a